Workbook

Sheet Cable System
A1: Frequency Sweep Calculation | C1: EMT Time Domain Simulation | F1: EMT-FFT
C2: FFT - Core_Send m U A(1) | D2: FFT - Core_Send m U A(1) | E2: FFT - Core m I bus1 A(2)
A3: Freq.Sweep | B3: Core_Send | C3: FFT - Core_Send m U A(1) | D3: Core_Send | E3: Core | F3: hand calculation
A4: Frequency in Hz | B4: Z, Magnitude A in Ohm | C4: Frequency in Hz | D4: FFT Mag, Phase Voltage A in V | E4: FFT Mag, Phase Current A/Terminal i in A | F4: Z (f)= U(f) / I(f)
A5: 0 | B5: 7.182431093e+12 | C5: 0 | D5: 1.136107 | E5: 0.115468 | F5: =D5/E5 -> 9.839150241
A6: 10 | B6: 10080.13785 | C6: 10 | D6: 1002.272184 | E6: 0.28718 | F6: =D6/E6 -> 3490.048694
A7: 20 | B7: 5039.944369 | C7: 20 | D7: 1002.272096 | E7: 0.328251 | F7: 3053.371036
A8: 30 | B8: 3359.840655 | C8: 30 | D8: 1002.271951 | E8: 0.384944 | F8: 2603.682486
A9: 40 | B9: 2519.756453 | C9: 40 | D9: 1002.271749 | E9: 0.451754 | F9: 2218.622854
A10: 50 | B10: 2015.680773 | C10: 50 | D10: 1002.271489 | E10: 0.525871 | F10: 1905.926528
A11: 60 | B11: 1679.610523 | C11: 60 | D11: 1002.271168 | E11: 0.605782 | F11: 1654.508005
A12: 70 | B12: 1439.544479 | C12: 70 | D12: 1002.270778 | E12: 0.69054 | F12: 1451.430443
A13: 80 | B13: 1259.481998 | C13: 80 | D13: 1002.271281 | E13: 0.77948 | F13: 1285.820394
A14: 90 | B14: 1119.422649 | C14: 90 | D14: 1002.265491 | E14: 0.872033 | F14: 1149.343535
A15: 100 | B15: 1007.366093 | C15: 100 | D15: 1002.264876 | E15: 0.967912 | F15: 1035.491735
A16: 110 | B16: 915.675671 | C16: 110 | D16: 1002.264228 | E16: 1.06672 | F16: 939.575735
A17: 120 | B17: 839.260209 | C17: 120 | D17: 1002.263538 | E17: 1.168161 | F17: 857.9840775
A18: 130 | B18: 774.594989 | C18: 130 | D18: 1002.262811 | E18: 1.271977 | F18: 787.9567091
A19: 140 | B19: 719.162308 | C19: 140 | D19: 1002.262048 | E19: 1.377937 | F19: 727.3642032
A20: 150 | B20: 671.115815 | C20: 150 | D20: 1002.261247 | E20: 1.485832 | F20: 674.5454715
A21: 160 | B21: 629.070714 | C21: 160 | D21: 1002.260401 | E21: 1.595478 | F21: 628.1881674
A22: 170 | B22: 591.968021 | C22: 170 | D22: 1002.259501 | E22: 1.706703 | F22: 587.2489244
A23: 180 | B23: 558.984063 | C23: 180 | D23: 1002.258538 | E23: 1.819351 | F23: 550.8879474
A24: 190 | B24: 529.46856 | C24: 190 | D24: 1002.257504 | E24: 1.933277 | F24: 518.4241596
A25: 200 | B25: 502.901274 | C25: 200 | D25: 1002.2564 | E25: 2.048347 | F25: 489.3001039
A26: 210 | B26: 478.861054 | C26: 210 | D26: 1002.25523 | E26: 2.164432 | F26: 463.0569267
A27: 220 | B27: 457.003315 | C27: 220 | D27: 1002.254003 | E27: 2.281412 | F27: 439.3130233
A28: 230 | B28: 437.043394 | C28: 230 | D28: 1002.252726 | E28: 2.399174 | F28: 417.7490778
A29: 240 | B29: 418.744068 | C29: 240 | D29: 1002.250212 | E29: 2.51761 | F29: 398.0958973
A30: 250 | B30: 401.906067 | C30: 250 | D30: 1002.249341 | E30: 2.636627 | F30: 380.1255699
A31: 260 | B31: 386.360777 | C31: 260 | D31: 1002.247973 | E31: 2.756122 | F31: 363.6442701
A32: 270 | B32: 371.964559 | C32: 270 | D32: 1002.246535 | E32: 2.876015 | F32: 348.4844603
A33: 280 | B33: 358.594295 | C33: 280 | D33: 1002.245017 | E33: 2.99623 | F33: 334.5020299
A34: 290 | B34: 346.143847 | C34: 290 | D34: 1002.24341 | E34: 3.116695 | F34: 321.5725023
A35: 300 | B35: 334.521227 | C35: 300 | D35: 1002.241716 | E35: 3.237342 | F35: 309.5878397
A36: 310 | B36: 323.646317 | C36: 310 | D36: 1002.239949 | E36: 3.358112 | F36: 298.4534015
A37: 320 | B37: 313.449012 | C37: 320 | D37: 1002.238131 | E37: 3.478945 | F37: 288.0867996
A38: 330 | B38: 303.867706 | C38: 330 | D38: 1002.23629 | E38: 3.599791 | F38: 278.415133
A39: 340 | B39: 294.848039 | C39: 340 | D39: 1002.234446 | E39: 3.7206 | F39: 269.3744143
A40: 350 | B40: 286.341863 | C40: 350 | D40: 1002.232604 | E40: 3.841331 | F40: 260.9076396
A41: 360 | B41: 278.306383 | C41: 360 | D41: 1002.230747 | E41: 3.961944 | F41: 252.96439
A42: 370 | B42: 270.703426 | C42: 370 | D42: 1002.228836 | E42: 4.082406 | F42: 245.49955
A43: 380 | B43: 263.498841 | C43: 380 | D43: 1002.226801 | E43: 4.202688 | F43: 238.4728062
A44: 390 | B44: 256.661978 | C44: 390 | D44: 1002.224532 | E44: 4.322766 | F44: 231.8479723
A45: 400 | B45: 250.165253 | C45: 400 | D45: 1002.225914 | E45: 4.442582 | F45: 225.5953664
A46: 410 | B46: 243.983773 | C46: 410 | D46: 1001.647368 | E46: 4.558079 | F46: 219.7520859
A47: 420 | B47: 238.095015 | C47: 420 | D47: 1001.644437 | E47: 4.67736 | F47: 214.1473902
A48: 430 | B48: 232.478554 | C48: 430 | D48: 1001.641057 | E48: 4.796366 | F48: 208.8333244
A49: 440 | B49: 227.11582 | C49: 440 | D49: 1001.637467 | E49: 4.915085 | F49: 203.7884323
A50: 450 | B50: 221.989895 | C50: 450 | D50: 1001.633765 | E50: 5.033509 | F50: 198.9931408
A51: 460 | B51: 217.085333 | C51: 460 | D51: 1001.630014 | E51: 5.151634 | F51: 194.4295759
A52: 470 | B52: 212.388001 | C52: 470 | D52: 1001.626251 | E52: 5.269457 | F52: 190.0814925
A53: 480 | B53: 207.884948 | C53: 480 | D53: 1001.62249 | E53: 5.386974 | F53: 185.9341608
A54: 490 | B54: 203.564277 | C54: 490 | D54: 1001.618724 | E54: 5.504189 | F54: 181.9738973
A55: 500 | B55: 199.415045 | C55: 500 | D55: 1001.614929 | E55: 5.621101 | F55: 178.1883885
A56: 510 | B56: 195.427165 | C56: 510 | D56: 1001.61108 | E56: 5.737714 | F56: 174.5662262
A57: 520 | B57: 191.591325 | C57: 520 | D57: 1001.607154 | E57: 5.854032 | F57: 171.0969728
A58: 530 | B58: 187.898912 | C58: 530 | D58: 1001.603137 | E58: 5.970059 | F58: 167.7710617
A59: 540 | B59: 184.341939 | C59: 540 | D59: 1001.59903 | E59: 6.085799 | F59: 164.5797093
A60: 550 | B60: 180.912978 | C60: 550 | D60: 1001.594833 | E60: 6.201259 | F60: 161.5147558
A61: 560 | B61: 177.605089 | C61: 560 | D61: 1001.589734 | E61: 6.316453 | F61: 158.5683823
A62: 570 | B62: 174.411749 | C62: 570 | D62: 1001.585936 | E62: 6.431376 | F62: 155.734315
A63: 580 | B63: 171.326805 | C63: 580 | D63: 1001.581614 | E63: 6.546042 | F63: 153.005681
A64: 590 | B64: 168.34453 | C64: 590 | D64: 1001.577253 | E64: 6.660462 | F64: 150.3765434
A65: 600 | B65: 165.459844 | C65: 600 | D65: 1001.572847 | E65: 6.774645 | F65: 147.8413772
A66: 610 | B66: 162.668427 | C66: 610 | D66: 1001.568387 | E66: 6.888602 | F66: 145.3950144
A67: 620 | B67: 159.966315 | C67: 620 | D67: 1001.563868 | E67: 7.00234 | F67: 143.0327388
A68: 630 | B68: 157.349439 | C68: 630 | D68: 1001.559286 | E68: 7.11587 | F68: 140.750082
A69: 640 | B69: 154.81368 | C69: 640 | D69: 1001.554643 | E69: 7.2292 | F69: 138.5429429
A70: 650 | B70: 152.355103 | C70: 650 | D70: 1001.549943 | E70: 7.342341 | F70: =D70/E70 -> 136.4074405
A71: 660 | B71: 149.970061 | C71: 660 | D71: 1001.545188 | E71: 7.455301 | F71: 134.3400069
A72: 670 | B72: 147.655181 | C72: 670 | D72: 1001.540376 | E72: 7.568091 | F72: 132.3372533
A73: 680 | B73: 145.407323 | C73: 680 | D73: 1001.535499 | E73: 7.680722 | F73: 130.3960095
A74: 690 | B74: 143.223555 | C74: 690 | D74: 1001.530542 | E74: 7.793204 | F74: 128.5133229
A75: 700 | B75: 141.101119 | C75: 700 | D75: 1001.525491 | E75: 7.905547 | F75: 126.6864255
A76: 710 | B76: 139.037419 | C76: 710 | D76: 1001.520322 | E76: 8.017762 | F76: 124.9127028
A77: 720 | B77: 137.030006 | C77: 720 | D77: 1001.527552 | E77: 8.129538 | F77: 123.1961216
A78: 730 | B78: 135.076566 | C78: 730 | D78: 1001.518732 | E78: 8.241516 | F78: 121.5211779
A79: 740 | B79: 133.174911 | C79: 740 | D79: 1001.513402 | E79: 8.353401 | F79: 119.8928918
A80: 750 | B80: 131.32297 | C80: 750 | D80: 1001.508003 | E80: 8.465193 | F80: 118.3089391
A81: 760 | B81: 129.518816 | C81: 760 | D81: 1001.502574 | E81: 8.576901 | F81: 116.7674168
A82: 770 | B82: 127.760519 | C82: 770 | D82: 1001.497132 | E82: 8.688535 | F82: 115.2665129
A83: 780 | B83: 126.046347 | C83: 780 | D83: 1001.49168 | E83: 8.800104 | F83: 113.8045278
A84: 790 | B84: 124.374624 | C84: 790 | D84: 1001.486207 | E84: 8.911617 | F84: 112.3798528
A85: 800 | B85: 122.743758 | C85: 800 | D85: 1001.480693 | E85: 9.023083 | F85: 110.9909654
A86: 810 | B86: 121.152235 | C86: 810 | D86: 1001.475116 | E86: 9.134513 | F86: 109.6363994
A87: 820 | B87: 119.598616 | C87: 820 | D87: 1001.469458 | E87: 9.245914 | F87: 108.3148143
A88: 830 | B88: 118.081529 | C88: 830 | D88: 1001.463709 | E88: 9.357294 | F88: 107.0249272
A89: 840 | B89: 116.59967 | C89: 840 | D89: 1001.457874 | E89: 9.468661 | F89: 105.7655221
A90: 850 | B90: 115.151774 | C90: 850 | D90: 1001.451965 | E90: 9.580024 | F90: 104.5354338
A91: 860 | B91: 113.736699 | C91: 860 | D91: 1001.445997 | E91: 9.691391 | F91: 103.3335666
A92: 870 | B92: 112.353289 | C92: 870 | D92: 1001.439982 | E92: 9.80277 | F92: 102.1588777
A93: 880 | B93: 111.000467 | C93: 880 | D93: 1001.434215 | E93: 9.91417 | F93: 101.0103937
A94: 890 | B94: 109.677199 | C94: 890 | D94: 1001.427057 | E94: 10.025586 | F94: 99.88713448
A95: 900 | B95: 108.3825 | C95: 900 | D95: 1001.420925 | E95: 10.13705 | F95: 98.78820022
A96: 910 | B96: 107.115427 | C96: 910 | D96: 1001.414751 | E96: 10.24856 | F96: 97.71272754
A97: 920 | B97: 105.87508 | C97: 920 | D97: 1001.40851 | E97: 10.360124 | F97: 96.65989616
A98: 930 | B98: 104.660596 | C98: 930 | D98: 1001.402193 | E98: 10.471748 | F98: 95.62894304
A99: 940 | B99: 103.471147 | C99: 940 | D99: 1001.395799 | E99: 10.583439 | F99: 94.61913079
A100: 950 | B100: 102.305944 | C100: 950 | D100: 1001.389339 | E100: 10.695206 | F100: 93.62973831
A101: 960 | B101: 101.164228 | C101: 960 | D101: 1001.382828 | E101: 10.807054 | F101: 92.66011144
A102: 970 | B102: 100.045272 | C102: 970 | D102: 1001.376279 | E102: 10.918991 | F102: 91.70959835
A103: 980 | B103: 98.948379 | C103: 980 | D103: 1001.369702 | E103: 11.031024 | F103: 90.77758348
A104: 990 | B104: 97.872878 | C104: 990 | D104: 1001.363097 | E104: 11.14316 | F104: 89.86347652
A105: 1000 | B105: 96.818129 | C105: 1000 | D105: 1001.356452 | E105: 11.255407 | F105: 88.96670303
A106: 1010 | B106: 95.783514 | C106: 1010 | D106: 1001.349752 | E106: 11.367772 | F106: 88.08672025
A107: 1020 | B107: 94.768441 | C107: 1020 | D107: 1001.34297 | E107: 11.48026 | F107: 87.22302195
A108: 1030 | B108: 93.772339 | C108: 1030 | D108: 1001.33607 | E108: 11.592878 | F108: 86.37510634
A109: 1040 | B109: 92.79466 | C109: 1040 | D109: 1001.313391 | E109: 11.705664 | F109: 85.54093053
A110: 1050 | B110: 91.834879 | C110: 1050 | D110: 1001.307398 | E110: 11.818569 | F110: 84.72323494
A111: 1060 | B111: 90.892487 | C111: 1060 | D111: 1001.300394 | E111: 11.931611 | F111: 83.91996638
A112: 1070 | B112: 89.966997 | C112: 1070 | D112: 1001.293318 | E112: 12.044808 | F112: 83.1306998
A113: 1080 | B113: 89.057939 | C113: 1080 | D113: 1001.286188 | E113: 12.158164 | F113: 82.35504867
A114: 1090 | B114: 88.164859 | C114: 1090 | D114: 1001.279013 | E114: 12.271687 | F114: 81.59261339
A115: 1100 | B115: 87.287321 | C115: 1100 | D115: 1001.271794 | E115: 12.385383 | F115: 80.84302229
A116: 1110 | B116: 86.424906 | C116: 1110 | D116: 1001.264524 | E116: 12.499257 | F116: 80.10592342
A117: 1120 | B117: 85.577207 | C117: 1120 | D117: 1001.257195 | E117: 12.613315 | F117: 79.38097122
A118: 1130 | B118: 84.743832 | C118: 1130 | D118: 1001.249797 | E118: 12.727564 | F118: 78.66782654
A119: 1140 | B119: 83.924405 | C119: 1140 | D119: 1001.242326 | E119: 12.842008 | F119: 77.96618146
A120: 1150 | B120: 83.118562 | C120: 1150 | D120: 1001.234786 | E120: 12.956654 | F120: 77.27572149
A121: 1160 | B121: 82.325949 | C121: 1160 | D121: 1001.227184 | E121: 13.071506 | F121: 76.59616145
A122: 1170 | B122: 81.546229 | C122: 1170 | D122: 1001.219531 | E122: 13.186572 | F122: 75.92720314
A123: 1180 | B123: 80.779071 | C123: 1180 | D123: 1001.211837 | E123: 13.301857 | F123: 75.26857618
A124: 1190 | B124: 80.024159 | C124: 1190 | D124: 1001.204107 | E124: 13.417369 | F124: 74.6200024
A125: 1200 | B125: 79.281187 | C125: 1200 | D125: 1001.197374 | E125: 13.533104 | F125: 73.9813552
A126: 1210 | B126: 78.549858 | C126: 1210 | D126: 1001.183476 | E126: 13.649046 | F126: 73.35190137
A127: 1220 | B127: 77.829884 | C127: 1220 | D127: 1001.175527 | E127: 13.765272 | F127: 72.73198285
A128: 1230 | B128: 77.12099 | C128: 1230 | D128: 1001.167541 | E128: 13.881748 | F128: 72.12114361
A129: 1240 | B129: 76.422905 | C129: 1240 | D129: 1001.159498 | E129: 13.998481 | F129: 71.51915254
A130: 1250 | B130: 75.73537 | C130: 1250 | D130: 1001.151393 | E130: 14.115476 | F130: 70.92579754
A131: 1260 | B131: 75.058134 | C131: 1260 | D131: 1001.143231 | E131: 14.23274 | F131: 70.34086416
A132: 1270 | B132: 74.390953 | C132: 1270 | D132: 1001.13502 | E132: 14.350279 | F132: 69.76415023
A133: 1280 | B133: 73.73359 | C133: 1280 | D133: 1001.126766 | E133: 14.468099 | F133: 69.19546003
A134: 1290 | B134: 73.085817 | C134: 1290 | D134: 1001.118471 | E134: 14.586207 | F134: =D134/E134 -> 68.63459918
A135: 1300 | B135: 72.447412 | C135: 1300 | D135: 1001.11013 | E135: 14.704609 | F135: 68.08138387
A136: 1310 | B136: 71.81816 | C136: 1310 | D136: 1001.101733 | E136: 14.823313 | F136: 67.53562668
A137: 1320 | B137: 71.197853 | C137: 1320 | D137: 1001.093269 | E137: 14.942323 | F137: 66.9971643
A138: 1330 | B138: 70.586288 | C138: 1330 | D138: 1001.084726 | E138: 15.061647 | F138: 66.4658205
A139: 1340 | B139: 69.983269 | C139: 1340 | D139: 1001.076097 | E139: 15.18129 | F139: 65.94143824
A140: 1350 | B140: 69.388606 | C140: 1350 | D140: 1001.067372 | E140: 15.301259 | F140: 65.42385643
A141: 1360 | B141: 68.802114 | C141: 1360 | D141: 1001.055673 | E141: 15.421582 | F141: 64.91264469
A142: 1370 | B142: 68.223613 | C142: 1370 | D142: 1001.047652 | E142: 15.542223 | F142: 64.40826721
A143: 1380 | B143: 67.65293 | C143: 1380 | D143: 1001.038813 | E143: 15.663205 | F143: 63.91021588
A144: 1390 | B144: 67.089896 | C144: 1390 | D144: 1001.029946 | E144: 15.784538 | F144: 63.41838741
A145: 1400 | B145: 66.534345 | C145: 1400 | D145: 1001.021046 | E145: 15.906228 | F145: 62.93264789
A146: 1410 | B146: 65.986119 | C146: 1410 | D146: 1001.0121 | E146: 16.028283 | F146: 62.45285911
A147: 1420 | B147: 65.445062 | C147: 1420 | D147: 1001.003093 | E147: 16.150708 | F147: 61.97889857
A148: 1430 | B148: 64.911024 | C148: 1430 | D148: 1000.994009 | E148: 16.27351 | F148: 61.51063962
A149: 1440 | B149: 64.383857 | C149: 1440 | D149: 1000.984836 | E149: 16.396695 | F149: 61.04796339
A150: 1450 | B150: 63.86342 | C150: 1450 | D150: 1000.975576 | E150: 16.52027 | F150: 60.5907516
A151: 1460 | B151: 63.349573 | C151: 1460 | D151: 1000.966241 | E151: 16.64424 | F151: 60.13889736
A152: 1470 | B152: 62.842182 | C152: 1470 | D152: 1000.956856 | E152: 16.768613 | F152: 59.69228677
A153: 1480 | B153: 62.341115 | C153: 1480 | D153: 1000.947451 | E153: 16.893395 | F153: 59.25081672
A154: 1490 | B154: 61.846245 | C154: 1490 | D154: 1000.938059 | E154: 17.018595 | F154: 58.8143768
A155: 1500 | B155: 61.357448 | C155: 1500 | D155: 1000.928702 | E155: 17.144219 | F155: 58.38286958
A156: 1510 | B156: 60.874602 | C156: 1510 | D156: 1000.919402 | E156: 17.270274 | F156: 57.95619699
A157: 1520 | B157: 60.39759 | C157: 1520 | D157: 1000.910065 | E157: 17.396754 | F157: 57.53430008
A158: 1530 | B158: 59.926296 | C158: 1530 | D158: 1000.789408 | E158: 17.524021 | F158: 57.10957594
A159: 1540 | B159: 59.46061 | C159: 1540 | D159: 1000.77963 | E159: 17.651396 | F159: 56.69691111
A160: 1550 | B160: 59.000422 | C160: 1550 | D160: 1000.769836 | E160: 17.779228 | F160: 56.28871152
A161: 1560 | B161: 58.545627 | C161: 1560 | D161: 1000.759956 | E161: 17.907524 | F161: 55.88488705
A162: 1570 | B162: 58.09612 | C162: 1570 | D162: 1000.749962 | E162: 18.036292 | F162: 55.48534932
A163: 1580 | B163: 57.651801 | C163: 1580 | D163: 1000.739848 | E163: 18.165537 | F163: 55.09002283
A164: 1590 | B164: 57.212573 | C164: 1590 | D164: 1000.729623 | E164: 18.29527 | F164: 54.69881685
A165: 1600 | B165: 56.778339 | C165: 1600 | D165: 1000.719309 | E165: 18.425496 | F165: 54.3116619
A166: 1610 | B166: 56.349005 | C166: 1610 | D166: 1000.708927 | E166: 18.556224 | F166: 53.9284785
A167: 1620 | B167: 55.924482 | C167: 1620 | D167: 1000.698499 | E167: 18.687462 | F167: 53.54919245
A168: 1630 | B168: 55.50468 | C168: 1630 | D168: 1000.688036 | E168: 18.819217 | F168: 53.17373385
A169: 1640 | B169: 55.089512 | C169: 1640 | D169: 1000.677541 | E169: 18.951496 | F169: 52.80203426
A170: 1650 | B170: 54.678895 | C170: 1650 | D170: 1000.667007 | E170: 19.084307 | F170: 52.43402378
A171: 1660 | B171: 54.272745 | C171: 1660 | D171: 1000.656421 | E171: 19.217656 | F171: 52.06963955
A172: 1670 | B172: 53.870982 | C172: 1670 | D172: 1000.645767 | E172: 19.351552 | F172: 51.70881214
A173: 1680 | B173: 53.473528 | C173: 1680 | D173: 1000.634982 | E173: 19.486008 | F173: 51.35146111
A174: 1690 | B174: 53.080305 | C174: 1690 | D174: 1000.623892 | E174: 19.621015 | F174: 50.99756012
A175: 1700 | B175: 52.69124 | C175: 1700 | D175: 1000.613011 | E175: 19.756597 | F175: 50.64703253
A176: 1710 | B176: 52.306258 | C176: 1710 | D176: 1000.60208 | E176: 19.892759 | F176: 50.29981412
A177: 1720 | B177: 51.925289 | C177: 1720 | D177: 1000.591102 | E177: 20.029507 | F177: 49.95585273
A178: 1730 | B178: 51.548263 | C178: 1730 | D178: 1000.580085 | E178: 20.16685 | F178: 49.61509036
A179: 1740 | B179: 51.175111 | C179: 1740 | D179: 1000.569033 | E179: 20.304795 | F179: 49.27747525
A180: 1750 | B180: 50.805768 | C180: 1750 | D180: 1000.557942 | E180: 20.443352 | F180: 48.94294938
A181: 1760 | B181: 50.440167 | C181: 1760 | D181: 1000.546804 | E181: 20.582528 | F181: 48.61146328
A182: 1770 | B182: 50.078246 | C182: 1770 | D182: 1000.535607 | E182: 20.72233 | F182: 48.28296852
A183: 1780 | B183: 49.719942 | C183: 1780 | D183: 1000.524336 | E183: 20.862769 | F183: 47.95740853
A184: 1790 | B184: 49.365195 | C184: 1790 | D184: 1000.512985 | E184: 21.003852 | F184: 47.6347379
A185: 1800 | B185: 49.013945 | C185: 1800 | D185: 1000.501553 | E185: 21.145589 | F185: 47.31490587
A186: 1810 | B186: 48.666134 | C186: 1810 | D186: 1000.490048 | E186: 21.287989 | F186: 46.9978657
A187: 1820 | B187: 48.321706 | C187: 1820 | D187: 1000.478495 | E187: 21.43106 | F187: 46.68357491
A188: 1830 | B188: 47.980604 | C188: 1830 | D188: 1000.466949 | E188: 21.574811 | F188: 46.37199135
A189: 1840 | B189: 47.642776 | C189: 1840 | D189: 1000.437782 | E189: 21.71932 | F189: 46.06211345
A190: 1850 | B190: 47.308167 | C190: 1850 | D190: 1000.433665 | E190: 21.864538 | F190: 45.75599379
A191: 1860 | B191: 46.976725 | C191: 1860 | D191: 1000.421867 | E191: 22.010383 | F191: 45.45226982
A192: 1870 | B192: 46.648401 | C192: 1870 | D192: 1000.410093 | E192: 22.156944 | F192: 45.1510864
A193: 1880 | B193: 46.323144 | C193: 1880 | D193: 1000.398306 | E193: 22.30423 | F193: 44.85240271
A194: 1890 | B194: 46.000906 | C194: 1890 | D194: 1000.386486 | E194: 22.452252 | F194: 44.55617575
A195: 1900 | B195: 45.681639 | C195: 1900 | D195: 1000.374612 | E195: 22.601019 | F195: 44.26236764
A196: 1910 | B196: 45.365297 | C196: 1910 | D196: 1000.362669 | E196: 22.750542 | F196: 43.97093788
A197: 1920 | B197: 45.051834 | C197: 1920 | D197: 1000.35065 | E197: 22.900829 | F197: 43.68185318
A198: 1930 | B198: 44.741204 | C198: 1930 | D198: 1000.338554 | E198: 23.051891 | F198: =D198/E198 -> 43.39507566
A199: 1940 | B199: 44.433365 | C199: 1940 | D199: 1000.326388 | E199: 23.203737 | F199: 43.11057258
A200: 1950 | B200: 44.128272 | C200: 1950 | D200: 1000.314163 | E200: 23.356378 | F200: 42.82830852
... 805 more rows

Sheet Overhead Line
A1: Frequency Sweep Calculation | C1: EMT Time Domain Simulation | F1: EMT / FFT
C2: FFT - Core_Send m U A(1) | D2: FFT - Core_Send m U A(1) | E2: FFT - Core m I bus1 A(2)
A3: Freq.Sweep | B3: Core_Send | C3: FFT - Core_Send m U A(1) | D3: Core_Send | E3: Overhead Line | F3: hand calculation
A4: Frequency in Hz | B4: Z, Magnitude A in Ohm | C4: Frequency in Hz | D4: FFT Mag, Phase Voltage A in V | E4: FFT Mag, Phase Current A/Terminal i in A | F4: Z (f)= U(f) / I(f)
A5: 0 | B5: 7.272573945e+12 | C5: 0 | D5: 1.136107 | E5: 0.001237 | F5: =D5/E5 -> 918.4373484
A6: 10 | B6: 45679.22328 | C6: 10 | D6: 1002.272186 | E6: 0.023065 | F6: =D6/E6 -> 43454.24609
A7: 20 | B7: 22836.18705 | C7: 20 | D7: 1002.272098 | E7: 0.049235 | F7: 20356.90257
A8: 30 | B8: 15220.50756 | C8: 30 | D8: 1002.271953 | E8: 0.075132 | F8: 13340.14738
A9: 40 | B9: 11411.68578 | C9: 40 | D9: 1002.27175 | E9: 0.100911 | F9: 9932.234841
A10: 50 | B10: 9125.60303 | C10: 50 | D10: 1002.27149 | E10: 0.126581 | F10: 7918.024743
A11: 60 | B11: 7600.885363 | C11: 60 | D11: 1002.27117 | E11: 0.152155 | F11: 6587.172094
A12: 70 | B12: 6511.231245 | C12: 70 | D12: 1002.270779 | E12: 0.177634 | F12: 5642.336371
A13: 80 | B13: 5693.491095 | C13: 80 | D13: 1002.271283 | E13: 0.203039 | F13: 4936.348598
A14: 90 | B14: 5057.026898 | C14: 90 | D14: 1002.265492 | E14: 0.228362 | F14: 4388.932887
A15: 100 | B15: 4547.456152 | C15: 100 | D15: 1002.264877 | E15: 0.253717 | F15: 3950.32606
A16: 110 | B16: 4130.17194 | C16: 110 | D16: 1002.264229 | E16: 0.279081 | F16: 3591.302271
A17: 120 | B17: 3782.103023 | C17: 120 | D17: 1002.26354 | E17: 0.304462 | F17: 3291.916692
A18: 130 | B18: 3487.277004 | C18: 130 | D18: 1002.262812 | E18: 0.329869 | F18: 3038.366176
A19: 140 | B19: 3234.285001 | C19: 140 | D19: 1002.262049 | E19: 0.355317 | F19: 2820.754563
A20: 150 | B20: 3014.760466 | C20: 150 | D20: 1002.261248 | E20: 0.38081 | F20: 2631.919456
A21: 160 | B21: 2822.428449 | C21: 160 | D21: 1002.260402 | E21: 0.406353 | F21: 2466.477181
A22: 170 | B22: 2652.49042 | C22: 170 | D22: 1002.259502 | E22: 0.431953 | F22: 2320.297583
A23: 180 | B23: 2501.214148 | C23: 180 | D23: 1002.258538 | E23: 0.457616 | F23: 2190.173722
A24: 190 | B24: 2365.653098 | C24: 190 | D24: 1002.257504 | E24: 0.483341 | F24: 2073.603324
A25: 200 | B25: 2243.450002 | C25: 200 | D25: 1002.2564 | E25: 0.509113 | F25: 1968.632504
A26: 210 | B26: 2132.696564 | C26: 210 | D26: 1002.255229 | E26: 0.53489 | F26: 1873.759519
A27: 220 | B27: 2031.831415 | C27: 220 | D27: 1002.254003 | E27: 0.560604 | F27: 1787.811009
A28: 230 | B28: 1939.564697 | C28: 230 | D28: 1002.252726 | E28: 0.586162 | F28: 1709.856193
A29: 240 | B29: 1854.821496 | C29: 240 | D29: 1002.250212 | E29: 0.611468 | F29: 1639.088574
A30: 250 | B30: 1776.698858 | C30: 250 | D30: 1002.24934 | E30: 0.636484 | F30: 1574.665412
A31: 260 | B31: 1704.432716 | C31: 260 | D31: 1002.247972 | E31: 0.661394 | F31: 1515.356916
A32: 270 | B32: 1637.372171 | C32: 270 | D32: 1002.246534 | E32: 0.686806 | F32: 1459.286223
A33: 280 | B33: 1574.959286 | C33: 280 | D33: 1002.245016 | E33: 0.713565 | F33: 1404.560224
A34: 290 | B34: 1516.713057 | C34: 290 | D34: 1002.243408 | E34: 0.742099 | F34: 1350.552161
A35: 300 | B35: 1462.216589 | C35: 300 | D35: 1002.241714 | E35: 0.77214 | F35: 1298.005173
A36: 310 | B36: 1411.10676 | C36: 310 | D36: 1002.239947 | E36: 0.803218 | F36: 1247.780736
A37: 320 | B37: 1363.065818 | C37: 320 | D37: 1002.238129 | E37: 0.835032 | F37: 1200.239187
A38: 330 | B38: 1317.814504 | C38: 330 | D38: 1002.236288 | E38: 0.867264 | F38: 1155.62999
A39: 340 | B39: 1275.106397 | C39: 340 | D39: 1002.234443 | E39: 0.898702 | F39: 1115.202195
A40: 350 | B40: 1234.723218 | C40: 350 | D40: 1002.232601 | E40: 0.92576 | F40: 1082.605212
A41: 360 | B41: 1196.470924 | C41: 360 | D41: 1002.230744 | E41: 0.945068 | F41: 1060.485324
A42: 370 | B42: 1160.176434 | C42: 370 | D42: 1002.228832 | E42: 0.96249 | F42: 1041.287527
A43: 380 | B43: 1125.684868 | C43: 380 | D43: 1002.226798 | E43: 0.985111 | F43: 1017.374487
A44: 390 | B44: 1092.857216 | C44: 390 | D44: 1002.224529 | E44: 1.012236 | F44: 990.1095486
A45: 400 | B45: 1061.568355 | C45: 400 | D45: 1002.22591 | E45: 1.041537 | F45: 962.2566553
A46: 410 | B46: 1031.705353 | C46: 410 | D46: 1001.647364 | E46: 1.069088 | F46: 936.9176008
A47: 420 | B47: 1003.16602 | C47: 420 | D47: 1001.644433 | E47: 1.099813 | F47: 910.7406741
A48: 430 | B48: 975.857657 | C48: 430 | D48: 1001.641053 | E48: 1.130845 | F48: 885.7456619
A49: 440 | B49: 949.69598 | C49: 440 | D49: 1001.637463 | E49: 1.162134 | F49: 861.894982
A50: 450 | B50: 924.604182 | C50: 450 | D50: 1001.63376 | E50: 1.193696 | F50: 839.1028872
A51: 460 | B51: 900.512124 | C51: 460 | D51: 1001.630008 | E51: 1.225551 | F51: 817.2895359
A52: 470 | B52: 877.355622 | C52: 470 | D52: 1001.626245 | E52: 1.257706 | F52: 796.3914023
A53: 480 | B53: 855.07583 | C53: 480 | D53: 1001.622484 | E53: 1.290178 | F53: 776.3444145
A54: 490 | B54: 833.618691 | C54: 490 | D54: 1001.618717 | E54: 1.322993 | F54: 757.0854245
A55: 500 | B55: 812.934463 | C55: 500 | D55: 1001.614923 | E55: 1.356176 | F55: 738.5582129
A56: 510 | B56: 792.977292 | C56: 510 | D56: 1001.611074 | E56: 1.389747 | F56: 720.7146869
A57: 520 | B57: 773.704841 | C57: 520 | D57: 1001.607147 | E57: 1.423722 | F57: 703.5131486
A58: 530 | B58: 755.077955 | C58: 530 | D58: 1001.60313 | E58: 1.458111 | F58: 686.9183005
A59: 540 | B59: 737.06037 | C59: 540 | D59: 1001.599022 | E59: 1.492928 | F59: 670.8957311
A60: 550 | B60: 719.618447 | C60: 550 | D60: 1001.594825 | E60: 1.528194 | F60: 655.4107823
A61: 560 | B61: 702.720938 | C61: 560 | D61: 1001.589726 | E61: 1.563935 | F61: 640.4292544
A62: 570 | B62: 686.338778 | C62: 570 | D62: 1001.585928 | E62: 1.600168 | F62: 625.9254828
A63: 580 | B63: 670.444896 | C63: 580 | D63: 1001.581605 | E63: 1.636918 | F63: 611.8703594
A64: 590 | B64: 655.014044 | C64: 590 | D64: 1001.577244 | E64: 1.674213 | F64: 598.237646
A65: 600 | B65: 640.022646 | C65: 600 | D65: 1001.572838 | E65: 1.712075 | F65: 585.0052352
A66: 610 | B66: 625.448664 | C66: 610 | D66: 1001.568378 | E66: 1.750521 | F66: 572.1544489
A67: 620 | B67: 611.271469 | C67: 620 | D67: 1001.563858 | E67: 1.789572 | F67: 559.6667013
A68: 630 | B68: 597.47173 | C68: 630 | D68: 1001.559276 | E68: 1.829256 | F68: 547.5227502
A69: 640 | B69: 584.031317 | C69: 640 | D69: 1001.554632 | E69: 1.869601 | F69: 535.7050151
A70: 650 | B70: 570.933201 | C70: 650 | D70: 1001.549932 | E70: 1.910631 | F70: =D70/E70 -> 524.1985145
A71: 660 | B71: 558.161378 | C71: 660 | D71: 1001.545177 | E71: 1.952366 | F71: 512.9904828
A72: 670 | B72: 545.700787 | C72: 670 | D72: 1001.540365 | E72: 1.994824 | F72: 502.0695385
A73: 680 | B73: 533.537244 | C73: 680 | D73: 1001.535487 | E73: 2.03804 | F73: 491.4209176
A74: 690 | B74: 521.657373 | C74: 690 | D74: 1001.53053 | E74: 2.082085 | F74: 481.0228833
A75: 700 | B75: 510.048557 | C75: 700 | D75: 1001.525478 | E75: 2.126989 | F75: 470.8653773
A76: 710 | B76: 498.698876 | C76: 710 | D76: 1001.52031 | E76: 2.172754 | F76: 460.9451001
A77: 720 | B77: 487.597062 | C77: 720 | D77: 1001.527539 | E77: 2.219244 | F77: 451.2922144
A78: 730 | B78: 476.732455 | C78: 730 | D78: 1001.518718 | E78: 2.266753 | F78: 441.8296647
A79: 740 | B79: 466.094959 | C79: 740 | D79: 1001.513388 | E79: 2.315145 | F79: 432.5920787
A80: 750 | B80: 455.675009 | C80: 750 | D80: 1001.507989 | E80: 2.364513 | F80: 423.5578273
A81: 760 | B81: 445.463529 | C81: 760 | D81: 1001.502559 | E81: 2.41532 | F81: 414.6459099
A82: 770 | B82: 435.451907 | C82: 770 | D82: 1001.497117 | E82: 2.468075 | F82: 405.7806659
A83: 780 | B83: 425.631962 | C83: 780 | D83: 1001.491664 | E83: 2.522341 | F83: 397.0484815
A84: 790 | B84: 415.995914 | C84: 790 | D84: 1001.486191 | E84: 2.577635 | F84: 388.5290939
A85: 800 | B85: 406.536365 | C85: 800 | D85: 1001.480677 | E85: 2.633974 | F85: 380.2166145
A86: 810 | B86: 397.24627 | C86: 810 | D86: 1001.4751 | E86: 2.691509 | F86: 372.0868479
A87: 820 | B87: 388.118918 | C87: 820 | D87: 1001.469441 | E87: 2.75036 | F87: 364.1230388
A88: 830 | B88: 379.14791 | C88: 830 | D88: 1001.463693 | E88: 2.810617 | F88: 356.3145363
A89: 840 | B89: 370.327143 | C89: 840 | D89: 1001.457857 | E89: 2.872377 | F89: 348.6512589
A90: 850 | B90: 361.65079 | C90: 850 | D90: 1001.451947 | E90: 2.935775 | F90: 341.1201291
A91: 860 | B91: 353.113285 | C91: 860 | D91: 1001.44598 | E91: 3.000973 | F91: 333.7070943
A92: 870 | B92: 344.709307 | C92: 870 | D92: 1001.439964 | E92: 3.068086 | F92: 326.405441
A93: 880 | B93: 336.43377 | C93: 880 | D93: 1001.434196 | E93: 3.137174 | F93: 319.2153817
A94: 890 | B94: 328.281802 | C94: 890 | D94: 1001.427038 | E94: 3.20827 | F94: 312.1392645
A95: 900 | B95: 320.248742 | C95: 900 | D95: 1001.420906 | E95: 3.281438 | F95: 305.1774576
A96: 910 | B96: 312.330122 | C96: 910 | D96: 1001.414731 | E96: 3.356731 | F96: 298.3303491
A97: 920 | B97: 304.52166 | C97: 920 | D97: 1001.40849 | E97: 3.434247 | F97: 291.5947775
A98: 930 | B98: 296.819249 | C98: 930 | D98: 1001.402173 | E98: 3.514145 | F98: 284.963248
A99: 940 | B99: 289.218948 | C99: 940 | D99: 1001.395779 | E99: 3.596657 | F99: 278.4240418
A100: 950 | B100: 281.716973 | C100: 950 | D100: 1001.389319 | E100: 3.682056 | F100: 271.9647173
A101: 960 | B101: 274.309692 | C101: 960 | D101: 1001.382807 | E101: 3.770605 | F101: 265.5761627
A102: 970 | B102: 266.993612 | C102: 970 | D102: 1001.376258 | E102: 3.862532 | F102: 259.2538413
A103: 980 | B103: 259.765379 | C103: 980 | D103: 1001.369681 | E103: 3.95804 | F103: 252.996352
A104: 990 | B104: 252.621766 | C104: 990 | D104: 1001.363075 | E104: 4.057335 | F104: 246.803154
A105: 1000 | B105: 245.559671 | C105: 1000 | D105: 1001.356431 | E105: 4.160652 | F105: 240.6729597
A106: 1010 | B106: 238.576112 | C106: 1010 | D106: 1001.34973 | E106: 4.26826 | F106: 234.6037331
A107: 1020 | B107: 231.668217 | C107: 1020 | D107: 1001.342948 | E107: 4.380461 | F107: 228.5930517
A108: 1030 | B108: 224.833227 | C108: 1030 | D108: 1001.336048 | E108: 4.497608 | F108: 222.637466
A109: 1040 | B109: 218.068488 | C109: 1040 | D109: 1001.313369 | E109: 4.620137 | F109: 216.7280687
A110: 1050 | B110: 211.371448 | C110: 1050 | D110: 1001.307375 | E110: 4.748337 | F110: 210.8753812
A111: 1060 | B111: 204.739657 | C111: 1060 | D111: 1001.300371 | E111: 4.882512 | F111: 205.078937
A112: 1070 | B112: 198.170761 | C112: 1070 | D112: 1001.293294 | E112: 5.022746 | F112: 199.3517677
A113: 1080 | B113: 191.662504 | C113: 1080 | D113: 1001.286165 | E113: 5.169092 | F113: 193.7063927
A114: 1090 | B114: 185.212726 | C114: 1090 | D114: 1001.27899 | E114: 5.321902 | F114: 188.1430718
A115: 1100 | B115: 178.819365 | C115: 1100 | D115: 1001.271771 | E115: 5.48202 | F115: 182.6465009
A116: 1110 | B116: 172.480454 | C116: 1110 | D116: 1001.264501 | E116: 5.650618 | F116: 177.1955742
A117: 1120 | B117: 166.194129 | C117: 1120 | D117: 1001.257171 | E117: 5.828806 | F117: 171.7774054
A118: 1130 | B118: 159.958628 | C118: 1130 | D118: 1001.249773 | E118: 6.017599 | F118: 166.3869216
A119: 1140 | B119: 153.772301 | C119: 1140 | D119: 1001.242303 | E119: 6.218033 | F119: 161.0223527
A120: 1150 | B120: 147.633613 | C120: 1150 | D120: 1001.234763 | E120: 6.431245 | F120: 155.682883
A121: 1160 | B121: 141.541161 | C121: 1160 | D121: 1001.227161 | E121: 6.658533 | F121: 150.3675301
A122: 1170 | B122: 135.49368 | C122: 1170 | D122: 1001.219508 | E122: 6.90144 | F122: 145.0740002
A123: 1180 | B123: 129.490069 | C123: 1180 | D123: 1001.211815 | E123: 7.161783 | F123: 139.7992392
A124: 1190 | B124: 123.52941 | C124: 1190 | D124: 1001.204085 | E124: 7.441667 | F124: 134.5402965
A125: 1200 | B125: 117.611002 | C125: 1200 | D125: 1001.197353 | E125: 7.743544 | F125: 129.2944617
A126: 1210 | B126: 111.734404 | C126: 1210 | D126: 1001.183455 | E126: 8.070239 | F126: 124.0587119
A127: 1220 | B127: 105.89949 | C127: 1220 | D127: 1001.175507 | E127: 8.42503 | F127: 118.8334649
A128: 1230 | B128: 100.106526 | C128: 1230 | D128: 1001.167523 | E128: 8.811439 | F128: 113.6213419
A129: 1240 | B129: 94.35627 | C129: 1240 | D129: 1001.15948 | E129: 9.233083 | F129: 108.4317643
A130: 1250 | B130: 88.650114 | C130: 1250 | D130: 1001.151376 | E130: 9.693063 | F130: 103.2853471
A131: 1260 | B131: 82.99028 | C131: 1260 | D131: 1001.143216 | E131: 10.192829 | F131: 98.22034844
A132: 1270 | B132: 77.380097 | C132: 1270 | D132: 1001.135006 | E132: 10.730546 | F132: 93.29767619
A133: 1280 | B133: 71.824392 | C133: 1280 | D133: 1001.126754 | E133: 11.299838 | F133: 88.59655811
A134: 1290 | B134: 66.330077 | C134: 1290 | D134: 1001.11846 | E134: 11.891395 | F134: =D134/E134 -> 84.18847915
A135: 1300 | B135: 60.907011 | C135: 1300 | D135: 1001.110121 | E135: 12.500128 | F135: 80.08798958
A136: 1310 | B136: 55.569323 | C136: 1310 | D136: 1001.101726 | E136: 13.135247 | F136: 76.21491442
A137: 1320 | B137: 50.33747 | C137: 1320 | D137: 1001.093264 | E137: 13.823694 | F137: 72.41865047
A138: 1330 | B138: 45.241505 | C138: 1330 | D138: 1001.084724 | E138: 14.602556 | F138: 68.55544495
A139: 1340 | B139: 40.326351 | C139: 1340 | D139: 1001.076098 | E139: 15.509354 | F139: 64.54660188
A140: 1350 | B140: 35.660323 | C140: 1350 | D140: 1001.067377 | E140: 16.579326 | F140: 60.38046281
A141: 1360 | B141: 31.348515 | C141: 1360 | D141: 1001.055683 | E141: 17.849435 | F141: 56.08332605
A142: 1370 | B142: 27.551721 | C142: 1370 | D142: 1001.047667 | E142: 19.364967 | F142: 51.69374505
A143: 1380 | B143: 24.505093 | C143: 1380 | D143: 1001.038835 | E143: 21.187226 | F143: 47.24728169
A144: 1390 | B144: 22.510867 | C144: 1390 | D144: 1001.029977 | E144: 23.403021 | F144: 42.77353667
A145: 1400 | B145: 21.855994 | C145: 1400 | D145: 1001.021087 | E145: 26.138736 | F145: 38.29646112
A146: 1410 | B146: 22.655451 | C146: 1410 | D146: 1001.012154 | E146: 29.583464 | F146: 33.8368811
A147: 1420 | B147: 24.768792 | C147: 1420 | D147: 1001.003163 | E147: 34.029325 | F147: 29.41589829
A148: 1430 | B148: 27.900169 | C148: 1430 | D148: 1000.994097 | E148: 39.943851 | F148: 25.06002982
A149: 1440 | B149: 31.751818 | C149: 1440 | D149: 1000.984947 | E149: 48.098229 | F149: 20.81126411
A150: 1450 | B150: 36.096588 | C150: 1450 | D150: 1000.975707 | E150: 59.750143 | F150: 16.7526914
A151: 1460 | B151: 40.780359 | C151: 1460 | D151: 1000.966368 | E151: 76.465509 | F151: 13.09042967
A152: 1470 | B152: 45.702602 | C152: 1470 | D152: 1000.95687 | E152: 95.841565 | F152: 10.44387026
A153: 1480 | B153: 50.797923 | C153: 1480 | D153: 1000.947204 | E153: 95.243068 | F153: 10.5093969
A154: 1490 | B154: 56.02325 | C154: 1490 | D154: 1000.937749 | E154: 65.728469 | F154: 15.22837462
A155: 1500 | B155: 61.349711 | C155: 1500 | D155: 1000.928454 | E155: 44.776625 | F155: 22.35381639
A156: 1510 | B156: 66.757617 | C156: 1510 | D156: 1000.919179 | E156: 38.234975 | F156: 26.17810471
A157: 1520 | B157: 72.233347 | C157: 1520 | D157: 1000.909846 | E157: 35.35162 | F157: 28.31298385
A158: 1530 | B158: 77.767383 | C158: 1530 | D158: 1000.789191 | E158: 32.326973 | F158: 30.95833288
A159: 1540 | B159: 83.353051 | C159: 1540 | D159: 1000.779418 | E159: 29.214664 | F159: 34.25606463
A160: 1550 | B160: 88.985682 | C160: 1550 | D160: 1000.769632 | E160: 26.339797 | F160: 37.99458409
A161: 1560 | B161: 94.662062 | C161: 1560 | D161: 1000.759759 | E161: 23.819469 | F161: 42.01436056
A162: 1570 | B162: 100.380047 | C162: 1570 | D162: 1000.749771 | E162: 21.652493 | F162: 46.21868581
A163: 1580 | B163: 106.1383 | C163: 1580 | D163: 1000.739663 | E163: 19.797039 | F163: 50.54996674
A164: 1590 | B164: 111.936096 | C164: 1590 | D164: 1000.729444 | E164: 18.203972 | F164: 54.97313685
A165: 1600 | B165: 117.773193 | C165: 1600 | D165: 1000.719133 | E165: 16.828366 | F165: 59.4662092
A166: 1610 | B166: 123.649728 | C166: 1610 | D166: 1000.708756 | E166: 15.63241 | F166: 64.01500191
A167: 1620 | B167: 129.566148 | C167: 1620 | D167: 1000.698331 | E167: 14.585284 | F167: 68.61013683
A168: 1630 | B168: 135.523149 | C168: 1630 | D168: 1000.687871 | E168: 13.662146 | F168: 73.24529185
A169: 1640 | B169: 141.521643 | C169: 1640 | D169: 1000.677378 | E169: 12.842999 | F169: 77.91617659
A170: 1650 | B170: 147.562719 | C170: 1650 | D170: 1000.666846 | E170: 12.111688 | F170: 82.61993258
A171: 1660 | B171: 153.647625 | C171: 1660 | D171: 1000.656262 | E171: 11.45508 | F171: 87.35480346
A172: 1670 | B172: 159.777747 | C172: 1670 | D172: 1000.645608 | E172: 10.86244 | F172: 92.1197823
A173: 1680 | B173: 165.954598 | C173: 1680 | D173: 1000.634825 | E173: 10.324935 | F173: 96.91439462
A174: 1690 | B174: 172.179803 | C174: 1690 | D174: 1000.623735 | E174: 9.835252 | F174: 101.7384949
A175: 1700 | B175: 178.455098 | C175: 1700 | D175: 1000.612855 | E175: 9.387281 | F175: 106.5924047
A176: 1710 | B176: 184.782319 | C176: 1710 | D176: 1000.601925 | E176: 8.975901 | F176: 111.4764885
A177: 1720 | B177: 191.1634 | C177: 1720 | D177: 1000.590948 | E177: 8.596789 | F177: 116.3912419
A178: 1730 | B178: 197.600373 | C178: 1730 | D178: 1000.579931 | E178: 8.246267 | F178: 121.3373192
A179: 1740 | B179: 204.095361 | C179: 1740 | D179: 1000.568879 | E179: 7.921182 | F179: 126.3156028
A180: 1750 | B180: 210.650584 | C180: 1750 | D180: 1000.557788 | E180: 7.618822 | F180: 131.3270986
A181: 1760 | B181: 217.268357 | C181: 1760 | D181: 1000.54665 | E181: 7.336847 | F181: 136.3728384
A182: 1770 | B182: 223.95109 | C182: 1770 | D182: 1000.535452 | E182: 7.07323 | F182: 141.4538269
A183: 1780 | B183: 230.701292 | C183: 1780 | D183: 1000.524182 | E183: 6.826197 | F183: 146.5712434
A184: 1790 | B184: 237.521572 | C184: 1790 | D184: 1000.51283 | E184: 6.594174 | F184: 151.7267864
A185: 1800 | B185: 244.414644 | C185: 1800 | D185: 1000.501397 | E185: 6.375738 | F185: 156.9232294
A186: 1810 | B186: 251.383329 | C186: 1810 | D186: 1000.489892 | E186: 6.169678 | F186: 162.1624163
A187: 1820 | B187: 258.43056 | C187: 1820 | D187: 1000.478338 | E187: 5.974993 | F187: 167.4442695
A188: 1830 | B188: 265.559385 | C188: 1830 | D188: 1000.466792 | E188: 5.790747 | F188: 172.7699021
A189: 1840 | B189: 272.772976 | C189: 1840 | D189: 1000.437624 | E189: 5.616006 | F189: 178.1404122
A190: 1850 | B190: 280.07463 | C190: 1850 | D190: 1000.433507 | E190: 5.450101 | F190: 183.5623793
A191: 1860 | B191: 287.467779 | C191: 1860 | D191: 1000.421708 | E191: 5.292364 | F191: 189.0311604
A192: 1870 | B192: 294.955994 | C192: 1870 | D192: 1000.409932 | E192: 5.142088 | F192: 194.55325
A193: 1880 | B193: 302.542992 | C193: 1880 | D193: 1000.398145 | E193: 4.998679 | F193: 200.132504
A194: 1890 | B194: 310.232645 | C194: 1890 | D194: 1000.386324 | E194: 4.861734 | F194: 205.7673916
A195: 1900 | B195: 318.028991 | C195: 1900 | D195: 1000.374449 | E195: 4.73093 | F195: 211.4540796
A196: 1910 | B196: 325.936236 | C196: 1910 | D196: 1000.362506 | E196: 4.605814 | F196: 217.1955937
A197: 1920 | B197: 333.958769 | C197: 1920 | D197: 1000.350485 | E197: 4.485953 | F197: 222.9962028
A198: 1930 | B198: 342.101172 | C198: 1930 | D198: 1000.338388 | E198: 4.370981 | F198: =D198/E198 -> 228.8590108
A199: 1940 | B199: 350.368227 | C199: 1940 | D199: 1000.326221 | E199: 4.260583 | F199: 234.7862302
A200: 1950 | B200: 358.764933 | C200: 1950 | D200: 1000.313995 | E200: 4.154478 | F200: 240.7797069
... 1852 more rows
